Workbook

Sheet 清单
A1: 淳安县第一人民医院功能提升改造项目(二期)院史陈列馆优化提升项目采购参数
A2: 序号 | B2: 展区 | C2: 名称 | D2: 规格型号 | E2: 单位 | F2: 数量 | G2: 备注
A3: 多媒体互动展项工程
A4: 1 | B4: 党建 | C4: 65寸触摸一体机 | D4: 定制65触摸一体机 1、屏幕比例：16:9； 2、对比度：5000：1； 3、响应时间：8ms 4、分辨率：3840×2160； 5、刷屏率：60Hz； 6、支持来电自启； 8、mini工控主板I5、 8G、 256G固态硬盘 | E4: 台 | F4: 1
A5: 2 | C5: 一体机安装支架-65寸 | D5: 定制一体机安装支架，液压安装支架 | E5: 套 | F5: 1
A6: 3 | C6: 触摸软件 | D6: 资料收集整理细化、风格设计/UI设计制作、唤醒触发及响应方式,设计制作、程序框架制作、触摸互动内容制作，不含音视频制作 | E6: 套 | F6: 1
A7: 4 | B7: 微观大冒险 | C7: 信号放大器 | D7: 显微镜信号传输器 | E7: 套 | F7: 1
A8: 5 | B8: 影像探秘空间 | C8: 内容制作-影片剪辑 | D8: 资料收集整理细化、创意策划及分镜头脚本、平面背景风格设计、过渡特效合成、渲染调色、素材包装剪辑输出、数字(视频/音频)内容合成， | E8: 秒 | F8: 30
A9: 6 | B9: 细胞攻坚战 | C9: 触摸互动软件（上下屏互动） | D9: 资料收集整理细化、风格设计/UI设计制作、唤醒触发及响应方式,设计制作、程序框架制作、触摸互动内容制作，不含音视频制作 | E9: 套 | F9: 1
A10: 7 | B10: 洗手观察站 | C10: 32寸触摸一体机 | D10: 定制32寸显示一体机 1、屏幕比例：16:9； 2、对比度：5000：1； 3、响应时间：8ms 4、分辨率：1920×1080； 5、刷屏率：60Hz； 6、支持来电自启； 8、mini工控主板I5、 8G、 256G固态硬盘 | E10: 台 | F10: 1
A11: 8 | C11: 一体机安装支架-32寸 | D11: 定制一体机安装支架，液压安装支架 | E11: 套 | F11: 1
A12: 9 | C12: 互动模块 | D12: 1点感应模块及7点灯光控制模块 | E12: 套 | F12: 1
A13: 10 | C13: 互动控制软件 | D13: 定制洗手互动软件：按照墙面七步洗手法完成动作，根据视频内容步骤，灯光同步点亮。 | E13: 套 | F13: 1
A14: 11 | B14: 医生训练营 | C14: 32 寸触摸一体机 | D14: 定制32 寸触摸一体机 1 、屏幕比例：16:9； 2 、对比度：5000：1； 3 、响应时间：8ms 4 、分辨率：1920×1080； 5 、刷屏率：60Hz； 6 、支持来电自启； 8 、mini 工控主板 I5 、 8G 、 256G 固态硬盘 | E14: 台 | F14: 1
A15: 12 | C15: 互动模块 | D15: 15点灯光控制模块 | E15: 套 | F15: 1
A16: 13 | C16: 互动控制软件 | D16: 1、急救流程互动：点击屏幕模拟拨打电话，触发流程图灯光，声音同步播放急救指导。 | E16: 套 | F16: 1
A17: 14 | B17: 签名软件 | C17: 签名软件（触摸端和显示端） | D17: 资料收集整理细化、风格设计/UI设计制作、唤醒触发及响应方式设计制作、程序框架制作、触摸签名软件制作， | E17: 套 | F17: 1
A18: 15 | B18: 线材辅料 | C18: 线材辅料 | D18: 新的线路铺设，线材辅料 | E18: 项 | F18: 1
A19: 16 | B19: 基本做法：3D建模打印，内置互动灯光和配套控制 | C19: 心脏信息互动模型 | D19: 3D建模打印心脏模型，表面细节人工打磨、上色、内置流水灯带和配套控制器安装、仿心跳的震动，观察灯光沿心房、心室及血流路径依次亮起。 | E19: 项 | F19: 1
A20: 17 | C20: 肺部信息互动模型 | D20: 3D建模打印肺部放大模型，表面细节人工打磨、上色、内置灯带和配套控制器安装，跟随提示深呼吸，观察支气管树灯光随呼吸节奏明暗变化。 | E20: 项 | F20: 1
A21: 18 | C21: 消化信息系统互动模型 | D21: 3D建模打印消化系统模型，内置流水灯带和配套控制器安装，模拟食物从口腔、胃、小肠至大肠，灯光依次点亮，了解食物消化吸收的主要过程。 | E21: 项 | F21: 1
A22: 19 | B22: 洗手观察站 | C22: 圆形灯箱 | D22: 定制圆形超薄小灯箱，直径200-500mm以内，灯箱画面为正确洗手7步骤 | E22: 个 | F22: 7
A23: 20 | B23: 生命接力站 | C23: 方形流线型灯箱 | D23: 定制方形灯箱，内置15个分开控制灯组，对应灯箱画面，15个抢救步骤画面，可依次点亮对应抢救步骤灯箱 | E23: 个 | F23: 15
A24: 21 | B24: 医生训练营 | C24: 心肺复苏模拟人半身 | D24: 急救训练仿真模型 多功能教学模型 CPR心脏按压人工呼吸教学用模拟人全身 半身语音+LED灯指示 | E24: 个 | F24: 1
A25: 22 | B25: 展厅墙面 | C25: 墙面新增磁吸展板 | D25: 墙面磁吸板位置背板增加铁板和配套磁吸展板 | E25: 块 | F25: 30
A26: 23 | B26: 时光年轮区域 | C26: “时光年轮 ”处展台变化增加差价 | D26: 1.定制烤漆展台，配套玻璃罩，内置积木台（展示物甲供），暂定尺寸L5900*H1170*W550mm（以二次深化为准） | E26: 个 | F26: 1
A27: 24 | B27: 器械进化史 | C27: 立式小展台 | D27: 1.定制烤漆展台，配套玻璃罩，暂定尺寸L450*W400*H1300mm以内（详细尺寸二次深化为准） | E27: 个 | F27: 10
A28: 25 | C28: 3D打印模型 | D28: 1.定制医疗器械相关道具，旧物仿制或3D打印微缩模型，安装在展台玻璃罩内 | E28: 组 | F28: 10

Sheet 计算式 (hidden)
A1: 计算式
A2: 工程名称：东宏股份智慧体验馆改造项目
A3: 序号 | B3: 项目名称 | C3: 项目特征 | D3: 单位 | E3: 数量 | F3: 汇总 | G3: EL-01 | H3: EL-02 | I3: EL-03 | J3: EL-04 | K3: EL-05 | L3: EL-06 | M3: EL-07 | N3: EL-08 | O3: EL-09 | P3: EL-10 | Q3: EL-11 | R3: EL-12 | S3: EL-13 | T3: EL-14 | U3: EL-15 | V3: EL-16
A4: 四 | B4: 墙面
A5: 1 | B5: 轻钢龙骨隔墙 | C5: 1.100系轻钢龙骨，内置隔音棉 2.横龙骨：U75*40*0.6mm 竖龙骨C75*50*0.6mm | D5: m2 | E5: =(338+242.7)*3.9 -> 2264.73 | F5: =SUM(G5:V5) -> 2322.57 | G5: =(11.2+7.8+0.705*2)*4.2*2-7.2*3.5-6.5*2 -> 133.24 | H5: =(15.33-6.345+7.2+15.33+7.2)*4.2-13.46 -> 149.143 | I5: =(1.1+6+24)*4.2 -> 130.62 | J5: =(15.1-5.8+21.3-5.9)*4.2 -> 103.74 | K5: =(7.85+3.1+17.6)*4.2-7.17*3.3 -> 96.249 | L5: =(7.85+16.14+0.47*2+24)*4.2 -> 205.506 | M5: =(15.1+15.47)*4.2 -> 128.394 | N5: =(15.1+18.27)*4.2-7.2*3.3 -> 116.394 | O5: =(21.72+22.69-4.35)*4.2 -> 168.252 | P5: =(24.47+7+12.3)*4.2 -> 183.834 | Q5: =(7+12.3-4.2+23.7-4.2)*4.2 -> 145.32 | R5: =(3.2+18.46+11.78)*4.2 -> 140.448 | S5: =(22.86+18.7)*4.2 -> 174.552 | T5: =(22.45+19.14)*4.2 -> 174.678 | U5: =(19.27+13.7)*4.2-6.6 -> 131.874 | V5: =(15.37+18.04)*4.2 -> 140.322
A6: 2 | B6: 造型木龙骨基础 | C6: 1.木龙骨基础30*40，刷防火涂料 | D6: m2 | E6: =(338+242.7)*3.9*0.4 -> 905.89 | F6: 153.433 | G6: =5.8*2 -> 11.6 | H6: =13.3+5.7+1.4*4.1+(15.33+7.2)*4.1-15-14.04-14.02 -> 74.053 | I6: 26.26 | J6: =10.3+9.4*4.1-21 -> 27.84 | O6: 13.68
A7: 3 | B7: 基层板 | C7: 1.12mm厚阻燃板基层2400*1200mm | D7: m2 | E7: =(338+242.7)*3.8 -> 2206.66 | F7: 2008.6575 | G7: =(11.2+7.8+0.705*2)*4.1*2-7.2*3.5-6.5*2 -> 129.16 | H7: =(15.33-6.345+7.2+15.33+7.2)*4.1-13.46-15-14.04-14.02 -> 102.2115 | I7: =(1.1+6+24)*4.1 -> 127.51 | J7: =(15.1-5.8+21.3-5.9)*4.2 -> 103.74 | K7: =(7.85+3.1+17.6)*4.1-7.17*3.3 -> 93.394 | L7: =(7.85+16.14+0.47*2+24)*4.1-9.5-4.1-2.5-3.8-5.32 -> 175.393 | M7: =(7.4)*4.1 -> 30.34 | N7: =(15.1+18.27-7.7)*4.1-7.2*3.3 -> 81.487 | O7: =(21.72+22.69-4.35)*4.1 -> 164.246 | P7: =(24.47+7+12.3)*4.1-27.94 -> 151.517 | Q7: =(7+12.3-4.2+23.7-4.2)*4.1 -> 141.86 | R7: =(3.2+18.46+11.78)*4.1-10.13 -> 126.974 | S7: =(22.86+18.7)*4.1 -> 170.396 | T7: =(22.45+19.14)*4.1 -> 170.519 | U7: =(19.27+13.7)*4.1-6.6-9-4.7 -> 114.877 | V7: =(15.37+18.04)*4.1-11.95 -> 125.031
B8: 碳晶板 | C8: 1.8mm碳晶板饰面，局部热弯弧度处理 | F8: 1347.9296 | G8: =(11.2+7.8+0.705*2)*4.1*2-7.2*3.5-6.5*2-6.2-13.5*2 -> 95.96 | H8: =H7-H9 -> 28.6715 | I8: =I7-I9 -> 101.21 | J8: =J7-J9 -> 93.48 | K8: =K7-10.4-20.8+3.14*1.1*0.65 -> 64.4391 | L8: =L7-21.72 -> 153.673 | O8: =O7-45.46 -> 118.786 | P8: =(24.47+7+12.3)*4.1-27.94-28.7-29.82 -> 92.997 | Q8: =Q7-28.7 -> 113.16 | R8: =R7-R9 -> 51.288 | S8: =S7-S9-5.42-6.3*4.1 -> 87.076 | T8: =T7-T22-12.8-4.3 -> 153.419 | U8: =U7-U9 -> 91.777 | V8: =V7-V9-5.74 -> 101.991
A9: 4 | B9: 9.5mm厚石膏板 | C9: 1.9.5mm厚石膏板2400*1200mm | D9: m2 | E9: =(338+242.7)*3.8*0.4 -> 882.66 | F9: 387.066 | H9: =15+14.04+14.02+1.4*4.1+13.3+5.7+1.4*4.1 -> 73.54 | I9: 26.3 | J9: 10.26 | K9: =10.4-4.33+1.4*4.1 -> 11.81 | L9: =16.9-5.32+10.14 -> 21.72 | O9: =11.55+5.1+11.55+22.1-1.21*4 -> 45.46 | P9: =11.22+7.9+10.7 -> 29.82 | R9: =18.46*4.1 -> 75.686 | S9: =(6.1+5.2+1.4)*4.1 -> 52.07 | U9: =3.3*3.3+3.7*3.3 -> 23.1 | V9: =13.3+4 -> 17.3
B10: 画面基层处理 | C10: 1.板缝贴胶带、点锈，刮腻子三遍、画面基膜 | F10: 387.066 | H10: =15+14.04+14.02+1.4*4.1+13.3+5.7+1.4*4.1 -> 73.54 | I10: 26.3 | J10: 10.26 | K10: =10.4-4.33+1.4*4.1 -> 11.81 | L10: =16.9-5.32+10.14 -> 21.72 | O10: =11.55+5.1+11.55+22.1-1.21*4 -> 45.46 | P10: =11.22+7.9+10.7 -> 29.82 | R10: =18.46*4.1 -> 75.686 | S10: =(6.1+5.2+1.4)*4.1 -> 52.07 | U10: =3.3*3.3+3.7*3.3 -> 23.1 | V10: =13.3+4 -> 17.3
B11: 12mm厚密度板 | C11: 1.12mm密度板造型 | D11: m2 | F11: =SUM(G11:V11) -> 57.4 | P11: =4.1*7 -> 28.7 | Q11: =4.1*7 -> 28.7
B12: 水性漆饰面 | C12: 1.板缝贴胶带、点锈，刮腻子三遍、水性漆 | D12: m2 | F12: 57.4 | P12: =4.1*7 -> 28.7 | Q12: =4.1*7 -> 28.7
A13: 6 | B13: 新作玻璃饰面 | C13: 1.12mm钢化玻璃新作 | D13: m2 | E13: =17.2*3.75-20.89 -> 43.61 | F13: 22.96 | H13: =1.4*4.1 -> 5.74 | K13: =1.4*4.1 -> 5.74 | S13: =1.4*4.1 -> 5.74 | V13: =1.4*4.1 -> 5.74
B14: 新作玻璃饰面 | C14: 1.15mm超白玻璃 | D14: m2 | E14: 0.00 | F14: 28.085 | R14: =0.55*4.1 -> 2.255 | S14: =6.3*4.1 -> 25.83
B15: 玻璃隔板 | C15: 1.15mm超白玻璃隔板W200mm | D15: m | F15: 16.59 | J15: =2.765*6 -> 16.59
A16: 7 | B16: 不锈钢包边 | C16: 1.12mm阻燃板基层，黑钛不锈钢包边W40mm内 | D16: m | E16: 91.00 | F16: 343.82 | I16: =15.64+14.84+28.64+3.88 -> 63 | J16: 7 | L16: =10.88+6.9+13.8+14.1 -> 45.68 | M16: =11.5+7.7+15.47*2 -> 50.14 | N16: 15.47 | O16: =1.21*4 -> 4.84 | P16: =4.84*2+23.83 -> 33.51 | R16: =16.96+3.9 -> 20.86 | S16: 9.6 | T16: =14.32+7+7.4+6.6 -> 35.32 | U16: =12.8+9.1 -> 21.9 | V16: =14.4+4.6+17.5 -> 36.5
A17: 8 | B17: 不锈钢造型包边 | C17: 1.12mm阻燃板基层，黑钛不锈钢包边120mm以内 | D17: m | E17: 35.00 | F17: 61.07 | H17: =16.94+16.14+16.06 -> 49.14 | I17: 4.7 | J17: 7.23
B18: 蓝色涂料边框 | C18: 1.12mm阻燃板 2.9.5mm厚石膏板+蓝色涂料 | D18: m | F18: 23.8 | H18: =14.1+9.7 -> 23.8
B19: 圆形屏幕造型结构 | C19: 1.钢木圆形框架 | D19: m2 | F19: 27.91265 | J19: =3.14*1.15*1.15 -> 4.15 | L19: 7.1 | P19: 1.8 | S19: 14.86
A20: 9 | B20: 金属门套 | C20: 1.12mm阻燃板 2.镜面不锈钢饰面 | D20: m2 | E20: =(3.2+3*2)*0.62*2+(4.5+3*2)*0.24 -> 13.93 | F20: 66.2508 | K20: =(7.17*3.3*2)*1.4 -> 66.2508
B21: 墙面吸音板 | D21: m2 | F21: 111.827 | M21: =(7.4)*4.1 -> 30.34 | N21: =(15.1+18.27-7.7)*4.1-7.2*3.3 -> 81.487
A22: 12 | B22: 墙面壁龛 | C22: 1.内凹形墙面壁龛，亚克力透光背板，背发光，配套隔板 | D22: m2 | E22: =5.5*2.7+1.9*2.7+1.5*1.12+0.58*0.8*6+15 -> 39.44 | F22: 34.888 | K22: =8*2.6 -> 20.8 | L22: =0.55*6+0.06*4+0.23+1.12*2 -> 6.01 | O22: =0.392*4+1.25+0.71+0.68+0.54+0.33 -> 5.078 | P22: 3
A23: 13 | B23: 金属饰面板包柱 | C23: 1.镀锌角铁焊接圆形框架，不锈钢定制圆柱包柱 | D23: m2 | E23: =2.66*3.8*2 -> 20.22 | F23: 33.4724 | K23: =3.14*1.3*4.1*2 -> 33.47
A24: 14 | B24: 墙面灯槽 | C24: 1.12mm阻燃板基层灯槽造型基层 | D24: m | E24: =3.9*8 -> 31.20 | F24: 913.55 | G24: =9.2*2+1.2*11 -> 31.6 | H24: 10.76 | I24: 11.26 | J24: =13.3+14.75+22.04+6.8*2+6.1*2+6.85*2 -> 89.59 | K24: =15+21.22+2.7*4+0.15*6 -> 47.92 | L24: =19.32+10.1+3.7+9.7+7.5+6.8+13.3*2+14.22+17+16.02+9+12.8 -> 152.76 | M24: =3.5*9+1.4 -> 32.9 | N24: =28*3.5+0.8*4 -> 101.2 | O24: =17.68+10.38+17.68+30.38 -> 76.12 | P24: =17.28+13.28+16.68+1.94*3+23.7+4.1*2 -> 84.96 | Q24: =4.1*2+10.4 -> 18.6 | S24: =38.76+18.6+10.76 -> 68.12 | T24: =13.64+4.61*2+4.83*2+3.6*2+12.1+8.5+16 -> 76.32 | U24: =15.1+10.3+8.1+10.6 -> 44.1 | V24: =2.6*6+1.6*24+13.34 -> 67.34
A25: 15 | B25: 暗门 | C25: 1.800*2100mm 含五金 2.30*30镀锌管骨架+12mm厚阻燃板基层+金属面板（暗门） 3.背面9.5mm石膏板+喷白色无机涂料 | D25: 樘 | E25: 1.00 | F25: 3 | G25: 1 | L25: 1 | R25: 1
A26: 16 | B26: 消火栓暗门（暂估） | C26: 1.700*1800mm 2.30*30镀锌管骨架+12mm厚阻燃板基层+4mm仿金属面铝塑板（暗门） 3.背面9.5mm石膏板+喷白色无机涂料 | D26: 樘 | E26: 3.00 | F26: 5 | G26: 5
A27: 小计
A28: 六 | B28: 美工展陈
B29: 墙面发光立体字/字母 | C29: 1.定制亚克力激光雕刻发光字，H775mm | D29: 个 | F29: =SUM(G29:V29) -> 8 | G29: 8
B30: 墙面发光立体字 | C30: 1.定制亚克力激光雕刻发光字，H110-150mm | D30: 个 | F30: =SUM(G30:V30) -> 90 | H30: 5 | L30: 20 | O30: 5 | Q30: 4 | R30: 12 | S30: 4 | T30: 20 | U30: 12 | V30: 8
B31: 墙面发光立体字 | C31: 1.定制亚克力激光雕刻发光字，H180-200mm | D31: 个 | F31: =SUM(G31:V31) -> 44 | H31: 8 | I31: 8 | J31: 4 | K31: 16 | L31: 4 | T31: 4
B32: 墙面立体字/字母 | C32: 1.定制亚克力激光雕刻，H30-50mm | D32: 个 | F32: =SUM(G32:V32) -> 913 | H32: 32 | K32: 32 | L32: =55+11+112 -> 178 | O32: =59+40 -> 99 | P32: =116+38 -> 154 | Q32: =25+40 -> 65 | S32: 32 | T32: 20 | U32: =73+170 -> 243 | V32: =32+26 -> 58
B33: 墙面立体字/字母 | C33: 1.定制亚克力激光雕刻，H50-100mm | D33: 个 | F33: =SUM(G33:V33) -> 1679 | H33: =22+17*2+60+16 -> 132 | I33: =68+27+18*4+19*8 -> 319 | J33: 25 | K33: 106 | L33: =107+156 -> 263 | O33: =18+6 -> 24 | P33: 15 | Q33: 14 | R33: 74 | S33: 113 | T33: =95+86+19+43+27+80 -> 350 | U33: =27+71+75 -> 173 | V33: =32+24+15 -> 71
B34: 墙面立体字/字母 | C34: 1.定制亚克力激光雕刻，H100-200mm | D34: 个 | F34: 236 | H34: 20 | I34: =16 -> 16 | J34: 4 | L34: =26+12 -> 38 | O34: 13 | P34: 25 | Q34: 6 | R34: 62 | S34: 8 | T34: 24 | U34: 16 | V34: 4
B35: 墙面立体字/字母 | C35: 1.定制亚克力激光雕刻，H200-300mm | D35: 个 | F35: 36 | H35: 4 | K35: 4 | S35: =20+4 -> 24 | V35: 4
A36: 3 | B36: 墙面画面 | C36: 1.定制墙面画面 | D36: ㎡ | E36: =(6.4+7.1+3.8+7.2)*1.92+7*2.1+5.7*2.2+9.6*2+7.4*3.8+15.4*2 -> 152.40 | F36: 387.066 | H36: =15+14.04+14.02+1.4*4.1+13.3+5.7+1.4*4.1 -> 73.54 | I36: 26.3 | J36: 10.26 | K36: =10.4-4.33+1.4*4.1 -> 11.81 | L36: =16.9-5.32+10.14 -> 21.72 | O36: =11.55+5.1+11.55+22.1-1.21*4 -> 45.46 | P36: =11.22+7.9+10.7 -> 29.82 | R36: =18.46*4.1 -> 75.686 | S36: =(6.1+5.2+1.4)*4.1 -> 52.07 | U36: =3.3*3.3+3.7*3.3 -> 23.1 | V36: =13.3+4 -> 17.3
B37: 墙面即时贴文字 | C37: 1.定制即时贴文字，<0.2㎡ | D37: 套 | F37: 33 | I37: 10 | Q37: 6 | T37: 17
A38: 4 | B38: 附墙长形展台 | C38: 1.定制烤漆展台，钢木结构骨架，烤漆饰面板，H650*W800mm | D38: 项（m） | E38: 1.00 | F38: =SUM(G38:V38) -> 19.5 | O38: =3.5*3+9 -> 19.5
B39: 附墙地台 | C39: 1.定制烤漆地台，钢木结构骨架，烤漆饰面板，H100*W1200mm | D39: ㎡ | F39: 57.384 | O39: =(22.69+8.37)*1.2 -> 37.272 | S39: =(16.76)*1.2 -> 20.112
B40: 精品展柜 | C40: 1.定制独脚支撑展柜，上置甲供零件，10mm钢化玻璃罩L605*W605*H820 | D40: 个 | F40: 6 | S40: 6
A41: 5 | B41: 长形插板模型台 | C41: 1.定制烤漆模型展台，3400*1200mm，配套亚克力插板 | D41: 个 | E41: 1.00 | F41: 0
B42: 长形展台 | C42: 1.定制烤漆模型展台，L3000*W800*H800mm | D42: 个 | E42: 1.00 | F42: 1 | T42: 1
A43: 6 | B43: 弧形展台 | C43: 1.定制烤漆模型弧形展台 | D43: 个 | E43: 4.00 | F43: =SUM(G43:V43) -> 0
A44: 7 | B44: 悬挑展台 | C44: 1.定制钢结构烤漆悬挑台 | D44: 项（m） | E44: 1.00 | F44: 5.6 | L44: =2.8*2 -> 5.6
B45: 悬挑精品展台 | C45: 1.定制墙面悬挑式精品展台，10mm钢化玻璃罩L1600*W830*H550mm | D45: 个 | E45: 1.00 | F45: 3 | U45: 1 | V45: 2
A46: 8 | B46: 沙盘台 | C46: 1.定制烤漆沙盘展台，7200*6400mm | D46: 个 | E46: 1.00 | F46: 0
A47: 9 | B47: 沙盘模型 | C47: 1.定制模型沙盘 | D47: ㎡ | E47: =2.7*2.4+2.7*3.6+3.3*3.5 -> 27.75 | F47: 0
B48: 亚克力线条 | D48: m | F48: =SUM(G48:V48) -> 94.99 | O48: =9+9.8+14.4+15.25+2.42 -> 50.87 | P48: =16.45+15.28+3.59+8.8 -> 44.12
B49: 造型透明管 | C49: 1.亚克力/玻璃透明圆管，内置跑马灯 | D49: m | F49: 69.82 | P49: =2.4+1.5*2+2.76*2 -> 10.92 | R49: =12.3*2+16+15+3.3 -> 58.9
B50: 深渊镜 | C50: 1.LED灯带、单透镜、镜面玻璃定制深渊镜，含配套结构 | D50: ㎡ | F50: 18.45 | R50: =3.2*4.1 -> 13.12 | V50: 5.33
A51: 10 | B51: 墙面展板 | C51: 1.墙面雪弗板/亚克力UV展板 | D51: 项 | E51: 1.00 | F51: 151 | H51: =4+6 -> 10 | I51: 20 | L51: =9+18 -> 27 | O51: 6 | P51: =2+7 -> 9 | Q51: =10+7 -> 17 | S51: =9+17 -> 26 | T51: 13 | U51: =6+13 -> 19 | V51: 4
A52: 11 | B52: 奖牌复刻 | C52: 1.奖牌复刻 | D52: 项 | E52: 1.00 | F52: 0
A53: 12 | B53: 磁吸展板 | C53: 1.墙面定制磁吸展板 | D53: 项 | E53: 1.00 | F53: 0
A54: 13 | B54: 墙面灯箱 | C54: 1.定制墙面软膜/亚克力灯箱 | D54: 项 | E54: 1.00 | F54: 52.631 | I54: =13.2+11.3*0.07 -> 13.991 | J54: 2.3 | T54: =4.9*3.5*2+0.8 -> 35.1 | V54: 1.24
A55: 14 | B55: 造型“树”形装置 | C55: 1.定制造型树装置 | D55: 项 | E55: 1.00 | F55: 0
A56: 15 | B56: 墙面雕刻板 | C56: 1.墙面定制造型雕刻板 | D56: 项 | E56: 1.00 | F56: 16.55 | H56: 2.45 | S56: 14.1
A57: 16 | B57: 墙面物理互动装置 | C57: 1.旋转装置，不同位置灯箱点亮 | D57: 项 | E57: 1.00 | F57: 1 | J57: 1
A58: 17 | B58: 造型门 | C58: 1.W2400mm，定制圆弧形造型仿太空舱门门套，模型开模浇筑，玻璃钢打磨喷漆，2樘 | D58: 项 | E58: 1.00 | F58: 1
A59: 19 | B59: 地贴 | C59: 1.定制地贴 | D59: 项 | E59: 1.00 | F59: 1
A60: 小计
A61: 七 | B61: 其他
A62: 1 | B62: 脚手架 | C62: 1.脚手架租赁 | D62: m2 | E62: =2135.7-73.3-156.2-45.7 -> 1860.50
A63: 小计
A64: 建安工程费合计
A65: 1 | B65: 安全文明施工及临时设施费 | C65: 3.00% | D65: 项 | E65: 1.00 | F65: 现场安全围挡、二次搬运等措施费用
A66: 2 | B66: 管理费 | C66: 5.00% | D66: 项 | E66: 1.00
B67: 未税合计
A68: 1 | B68: 税金 | C68: 9.00% | D68: 项 | E68: 1.00
B69: 工程费用总计
D73: =#REF!/E62 -> 
